bitfinex/quotes_BTCUSD_20250610
["timestamp","ask_amount","ask_price","bid_price","bid_amount"]
[1749585415529,0.5398734,109290.0,109280.0,0.02549094]
[1749585415735,0.5398734,109290.0,109280.0,0.02549026]
[1749585415934,0.5398734,109290.0,109280.0,0.01908383]
[1749585416141,0.5398734,109290.0,109280.0,0.02549026]
[1749585416347,0.5398734,109290.0,109280.0,0.01908383]
[1749585416566,0.5398734,109290.0,109280.0,0.02549001]
[1749585416774,0.5398734,109290.0,109280.0,0.00840634]
[1749585416975,0.4323534,109290.0,109280.0,0.02548988]
[1749585417192,0.341,109290.0,109280.0,0.06978965]
[1749585417359,0.341,109290.0,109280.0,0.05270634]
[1749585417556,0.341,109290.0,109280.0,0.06978742]
[1749585417760,0.341,109290.0,109280.0,0.06338167]
[1749585418010,0.001,109290.0,109280.0,0.05270563]
[1749585418133,0.001,109290.0,109280.0,0.06978701]
[1749585418929,0.001,109290.0,109280.0,0.06978711]
[1749585419158,0.001,109290.0,109280.0,0.06978703]
[1749585419357,0.001,109290.0,109280.0,0.05270667]
[1749585419636,0.001,109290.0,109280.0,0.06979112]
[1749585420011,0.001,109290.0,109280.0,0.0463]
[1749585420245,0.001,109290.0,109280.0,0.06979146]
[1749585420560,0.001,109290.0,109280.0,0.0463]
[1749585420778,0.001,109290.0,109280.0,0.06979111]
[1749585420987,0.001,109290.0,109280.0,0.069791]
[1749585421196,0.001,109290.0,109280.0,0.06338536]
[1749585421400,0.001,109290.0,109280.0,0.05270699]
[1749585421609,0.001,109290.0,109280.0,0.0463]
[1749585422034,0.001,109290.0,109280.0,0.06338568]
[1749585422875,0.001,109290.0,109280.0,0.06338545]
[1749585423078,0.001,109290.0,109280.0,0.06338554]
[1749585423705,0.001,109290.0,109280.0,0.01908554]
[1749585423915,0.4323534,109290.0,109280.0,0.01908734]
[1749585424342,0.4323534,109290.0,109280.0,0.002]
[1749585424582,0.4323534,109290.0,109280.0,0.01908811]
[1749585424782,0.4323534,109290.0,109280.0,0.01908992]
[1749585425203,0.4323534,109290.0,109280.0,0.01908948]
[1749585425401,0.1998734,109290.0,109280.0,0.01908948]
[1749585425628,0.1998734,109290.0,109280.0,0.019089]
[1749585425871,0.1998734,109290.0,109280.0,0.01908898]
[1749585426081,0.0923534,109290.0,109280.0,0.01908885]
[1749585426287,0.0923534,109290.0,109280.0,0.002]
[1749585426496,0.001,109290.0,109280.0,0.06428885]
[1749585427321,0.001,109290.0,109280.0,0.0472]
[1749585427700,0.001,109290.0,109280.0,0.06428775]
[1749585427910,0.001,109290.0,109280.0,0.0472]
[1749585428111,0.001,109290.0,109280.0,0.064288]
[1749585429501,0.001,109290.0,109280.0,0.06429445]
[1749585429704,0.001,109290.0,109280.0,0.0254]
[1749585429911,0.001,109290.0,109280.0,0.01909445]
[1749585430755,0.001,109290.0,109280.0,0.002]
[1749585430965,0.001,109290.0,109280.0,0.01909804]
[1749585431373,0.001,109290.0,109280.0,0.002]
[1749585431572,0.001,109290.0,109280.0,0.01909804]
[1749585432507,0.001,109290.0,109280.0,0.01910491]
[1749585432731,0.1152534,109290.0,109280.0,0.002]
[1749585432947,0.0923534,109290.0,109280.0,0.01910506]
[1749585433198,0.0923534,109290.0,109280.0,0.019105]
[1749585433435,0.001,109290.0,109280.0,0.019105]
[1749585433883,0.341,109290.0,109280.0,0.019105]
[1749585434098,0.341,109290.0,109280.0,0.019107]
[1749585434329,0.341,109290.0,109280.0,0.01910656]
[1749585434975,0.341,109290.0,109280.0,0.0255215]
[1749585435194,0.001,109290.0,109280.0,0.06070656]
[1749585436092,0.001,109290.0,109280.0,0.06070707]
[1749585436306,0.001,109290.0,109280.0,0.0436]
[1749585436526,0.001,109290.0,109280.0,0.06070707]
[1749585437197,0.0923534,109290.0,109280.0,0.01910707]
[1749585437417,0.14939425,109290.0,109280.0,0.01910707]
[1749585437626,0.15854363,109290.0,109280.0,0.002]
[1749585437840,0.16769317,109290.0,109280.0,0.01910784]
[1749585438054,0.14939425,109290.0,109280.0,0.0191078]
[1749585438263,0.167693,109290.0,109280.0,0.002]
[1749585438451,0.16769292,109290.0,109280.0,0.01910778]
[1749585438677,0.15854354,109290.0,109280.0,0.01910778]
[1749585439142,0.16769292,109290.0,109280.0,0.01910778]
[1749585439349,0.16769292,109290.0,109280.0,0.01910824]
[1749585439350,0.17684246,109290.0,109280.0,0.01910824]
[1749585439574,0.16769292,109290.0,109280.0,0.002]
[1749585439796,0.16769292,109290.0,109280.0,0.01910824]
[1749585440026,0.15854354,109290.0,109280.0,0.02552383]
[1749585440468,0.15854354,109290.0,109280.0,0.02552163]
[1749585440695,0.14939425,109290.0,109280.0,0.0255208]
[1749585440913,0.12809425,109290.0,109280.0,0.02552134]
[1749585441151,0.13724346,109290.0,109280.0,0.02552263]
[1749585441355,0.13724346,109290.0,109280.0,0.00841526]
[1749585441572,0.14639284,109290.0,109280.0,0.02552258]
[1749585441780,0.13724346,109290.0,109280.0,0.0191073]
[1749585441987,0.13724346,109290.0,109280.0,0.02552255]
[1749585442190,0.14639284,109290.0,109280.0,0.02552255]
[1749585442406,0.14639284,109290.0,109280.0,0.0255226]
[1749585442609,0.13724346,109290.0,109280.0,0.0255226]
[1749585442810,0.14639284,109290.0,109280.0,0.00841525]
[1749585443019,0.16629284,109290.0,109280.0,0.0255226]
[1749585443229,0.27760346,109290.0,109280.0,0.0255226]
[1749585443920,0.27760346,109290.0,109280.0,0.02551911]
[1749585444124,0.27760346,109290.0,109280.0,0.02551781]
[1749585444338,0.26845425,109290.0,109280.0,0.002]
[1749585444544,0.24725425,109290.0,109280.0,0.002]
[1749585445004,0.24725425,109290.0,109280.0,0.02551699]
[1749585445215,0.24725425,109290.0,109280.0,0.02551695]
[1749585445419,0.24725425,109290.0,109280.0,0.02551687]
[1749585445853,0.24725425,109290.0,109280.0,0.00841369]
[1749585446060,0.24725425,109290.0,109280.0,0.02551687]
[1749585446527,0.10689425,109290.0,109280.0,0.002]
[1749585446749,0.1998734,109290.0,109280.0,0.06601637]
[1749585446979,0.10852,109290.0,109280.0,0.06601637]
[1749585447628,0.10852,109290.0,109280.0,0.066018]
[1749585447830,0.10852,109290.0,109280.0,0.0425]
[1749585448036,0.10852,109290.0,109280.0,0.06601867]
[1749585448248,0.10852,109290.0,109280.0,0.06603084]
[1749585448884,0.001,109290.0,109280.0,0.06603084]
[1749585449087,0.10852,109290.0,109280.0,0.06603084]
[1749585449516,0.10852,109290.0,109280.0,0.06603292]
[1749585449949,0.10852,109290.0,109280.0,0.06603298]
[1749585450161,0.10852,109290.0,109280.0,0.0596149]
[1749585450587,0.001,109290.0,109280.0,0.0596148]
[1749585450806,0.341,109290.0,109280.0,0.05961608]
[1749585451018,0.341,109290.0,109280.0,0.0425]
[1749585451232,0.341,109290.0,109280.0,0.05961541]
[1749585451724,0.341,109290.0,109280.0,0.05961528]
[1749585452820,0.341,109290.0,109280.0,0.05961506]
[1749585453028,0.341,109290.0,109280.0,0.05961503]
[1749585453242,0.001,109290.0,109280.0,0.0425]
[1749585453461,0.001,109290.0,109280.0,0.05961432]
[1749585453677,0.001,109290.0,109280.0,0.91420749]
[1749585454314,0.001,109290.0,109280.0,0.91419577]
[1749585454525,0.001,109290.0,109280.0,0.91419571]
[1749585454734,0.001,109290.0,109280.0,0.91419381]
[1749585454944,0.001,109290.0,109280.0,0.91219376]
[1749585455152,0.001,109290.0,109280.0,0.91419377]
[1749585455371,0.001,109290.0,109280.0,1.11619377]
[1749585455593,0.002,109310.0,109300.0,0.225]
[1749585455802,0.002,109310.0,109300.0,1.33694493]
[1749585456014,0.002,109310.0,109300.0,1.31984438]
[1749585456233,0.002,109310.0,109300.0,1.24576887]
[1749585456460,0.002,109310.0,109300.0,1.31972231]
[1749585456672,0.002,109310.0,109300.0,1.33681745]
[1749585456882,0.002,109310.0,109300.0,1.33696287]
[1749585457095,0.002,109310.0,109300.0,1.24591319]
[1749585457303,0.002,109310.0,109300.0,1.24591299]
[1749585457525,0.002,109310.0,109300.0,1.33685921]
[1749585457779,0.002,109310.0,109300.0,1.5289393]
[1749585458006,0.003,109310.0,109300.0,1.7021417]
[1749585458229,0.002,109330.0,109320.0,0.467]
[1749585458445,0.002,109330.0,109320.0,2.15014198]
[1749585458655,0.002,109330.0,109320.0,2.15013936]
[1749585458870,0.002,109330.0,109320.0,2.05934702]
[1749585459146,0.002,109330.0,109320.0,2.13310348]
[1749585459992,0.002,109330.0,109320.0,2.13710348]
[1749585460207,0.002,109330.0,109320.0,2.13910348]
[1749585460634,0.002,109330.0,109320.0,2.04631304]
[1749585460844,0.002,109330.0,109320.0,2.04627304]
[1749585461049,0.002,109330.0,109320.0,2.05027304]
[1749585461272,0.002,109330.0,109320.0,1.93883304]
[1749585461497,0.002,109330.0,109320.0,2.04627304]
[1749585461715,0.002,109330.0,109320.0,2.05027304]
[1749585462148,0.004,109330.0,109320.0,2.23322218]
[1749585462356,0.004,109330.0,109320.0,7.36066354]
[1749585462567,0.004,109330.0,109320.0,4.54221683]
[1749585462780,0.004,109330.0,109320.0,2.55583719]
[1749585462990,0.004,109330.0,109320.0,3.69146403]
[1749585463198,0.004,109330.0,109320.0,3.68231683]
[1749585463405,0.004,109330.0,109320.0,3.51746403]
[1749585463617,0.004,109330.0,109320.0,3.51746395]
[1749585463795,0.004,109330.0,109320.0,3.51746403]
[1749585464029,0.004,109330.0,109320.0,3.52661115]
[1749585464236,0.004,109330.0,109320.0,3.30707304]
[1749585464441,0.004,109330.0,109320.0,3.19963304]
[1749585464652,0.004,109330.0,109320.0,0.5663534]
[1749585464867,0.004,109330.0,109320.0,0.6737534]
[1749585465087,0.004,109330.0,109320.0,0.5413534]
[1749585465299,0.004,109330.0,109320.0,1.10459322]
[1749585465515,0.004,109330.0,109320.0,1.21199322]
[1749585465733,0.004,109330.0,109320.0,1.77523304]
[1749585465945,0.004,109330.0,109320.0,2.02523304]
[1749585466161,0.004,109330.0,109320.0,2.02123304]
[1749585466370,0.004,109330.0,109320.0,2.01723304]
[1749585466593,0.004,109330.0,109320.0,2.01923304]
[1749585466846,0.004,109330.0,109320.0,2.02023304]
[1749585467053,0.004,109330.0,109320.0,2.01723304]
[1749585467256,0.004,109330.0,109320.0,2.02123304]
[1749585467465,0.004,109330.0,109320.0,2.02323304]
[1749585467676,0.004,109330.0,109320.0,2.24947649]
[1749585467893,0.004,109330.0,109320.0,2.04823304]
[1749585469226,0.004,109330.0,109320.0,2.249477]
[1749585469436,0.004,109330.0,109320.0,2.24032963]
[1749585469846,0.004,109330.0,109320.0,2.249477]
[1749585470052,0.004,109330.0,109320.0,2.32691827]
[1749585470262,0.004,109330.0,109320.0,2.37691827]
[1749585470517,0.004,109330.0,109320.0,7.42691827]
[1749585470724,0.004,109330.0,109320.0,6.13651777]
[1749585470932,0.004,109330.0,109320.0,6.12737098]
[1749585471343,0.004,109330.0,109320.0,6.13651785]
[1749585471551,0.004,109330.0,109320.0,6.12737106]
[1749585471757,0.004,109330.0,109320.0,6.13651793]
[1749585471965,0.004,109330.0,109320.0,6.12737106]
[1749585472173,0.004,109330.0,109320.0,6.13651751]
[1749585472608,0.002,109350.0,109340.0,0.425]
[1749585472816,0.002,109350.0,109340.0,1.21195322]
[1749585473017,0.002,109350.0,109340.0,1.25315322]
[1749585473646,0.002,109350.0,109340.0,1.69521459]
[1749585473846,0.002,109350.0,109340.0,6.81465064]
[1749585474063,0.002,109350.0,109340.0,6.81565064]
[1749585474271,0.002,109370.0,109360.0,2.10990588]
[1749585474524,0.002,109370.0,109360.0,2.32690657]
[1749585475139,0.002,109390.0,109380.0,0.4661]
[1749585475287,0.002,109390.0,109380.0,1.22805322]
[1749585475511,0.002,109410.0,109400.0,0.425]
[1749585475711,0.002,109410.0,109400.0,1.81599304]
[1749585475898,0.002,109410.0,109400.0,0.5163534]
[1749585476094,0.002,109410.0,109400.0,0.6237134]
[1749585476339,0.00247876,109410.0,109400.0,0.6237134]
[1749585476930,0.00247876,109410.0,109400.0,0.6247134]
[1749585477130,0.00247876,109410.0,109400.0,0.5183534]
[1749585477340,0.00247876,109410.0,109400.0,0.6256734]
[1749585477538,0.00247876,109410.0,109400.0,0.5183534]
[1749585477717,0.00247876,109410.0,109400.0,0.6256734]
[1749585478347,0.00247876,109410.0,109400.0,0.5183534]
[1749585478521,0.00247876,109410.0,109400.0,0.6256734]
[1749585481306,0.00247876,109410.0,109400.0,1.18891322]
[1749585481735,0.00247876,109410.0,109400.0,0.6256734]
[1749585482574,0.00247876,109410.0,109400.0,0.227]
[1749585482785,0.06815895,109410.0,109400.0,0.002]
[1749585483011,0.15037301,109410.0,109400.0,0.002]
[1749585483634,0.05901961,109410.0,109400.0,0.002]
[1749585483843,0.04447876,109410.0,109400.0,0.001]
[1749585484041,0.04947876,109410.0,109380.0,0.025]
[1749585484252,0.04947876,109410.0,109380.0,0.2236334]
[1749585484468,0.05447876,109410.0,109380.0,0.2236334]
[1749585485294,0.02867876,109410.0,109380.0,0.2236334]
[1749585485719,0.05217876,109410.0,109380.0,0.2236334]
[1749585486164,0.05317876,109410.0,109380.0,0.2236334]
[1749585486385,0.03367876,109410.0,109380.0,0.2236334]
[1749585486610,0.02467876,109410.0,109380.0,0.2236334]
[1749585486859,0.02567876,109410.0,109380.0,0.2435334]
[1749585487725,0.042,109400.0,109370.0,0.4]
[1749585487941,0.042,109400.0,109380.0,0.10728]
[1749585488806,0.3607,109400.0,109370.0,0.5986334]
[1749585489028,0.0197,109390.0,109370.0,0.5986334]
[1749585490118,0.0197,109390.0,109370.0,0.60501202]
[1749585490334,0.0197,109390.0,109370.0,0.5986334]
[1749585490766,0.0197,109390.0,109370.0,0.60501324]
[1749585490970,0.3807,109400.0,109370.0,0.60501324]
[1749585492165,0.3807,109400.0,109370.0,0.60501301]
[1749585492394,0.3807,109400.0,109370.0,0.605013]
[1749585493254,0.3807,109400.0,109370.0,0.60501525]
[1749585493469,0.3807,109400.0,109370.0,0.5986334]
[1749585493687,0.3807,109400.0,109370.0,0.60501532]
[1749585493894,0.3807,109400.0,109370.0,0.5986334]
[1749585494100,0.3817,109400.0,109370.0,0.5986334]
[1749585494344,0.3817,109400.0,109370.0,0.605017]
[1749585494587,0.3817,109400.0,109370.0,0.4913534]
[1749585494793,0.3817,109400.0,109380.0,0.10728]
[1749585495212,0.0173,109390.0,109380.0,0.10728]
[1749585496070,0.0173,109390.0,109380.0,0.11366937]
[1749585496279,0.0173,109390.0,109380.0,0.10728]
[1749585496486,0.3617,109400.0,109380.0,0.00638937]
[1749585496691,0.0363,109390.0,109380.0,0.00638937]
[1749585497164,0.0363,109390.0,109380.0,0.00638952]
[1749585497359,0.0363,109390.0,109370.0,0.2]
[1749585497589,0.0393,109390.0,109370.0,0.20638968]
[1749585497803,0.0393,109390.0,109370.0,0.2]
[1749585498227,0.0393,109390.0,109370.0,0.20638976]
[1749585498710,0.0373,109390.0,109370.0,0.2]
[1749585498960,0.0343,109390.0,109370.0,0.2]
[1749585499179,0.0343,109390.0,109370.0,0.20638974]
[1749585499348,0.0353,109390.0,109370.0,0.20638974]
[1749585499561,0.0353,109390.0,109370.0,0.20638976]
[1749585499791,0.0363,109390.0,109370.0,0.20638974]
[1749585500202,0.0363,109390.0,109370.0,0.20639034]
[1749585500618,0.0363,109390.0,109370.0,0.2]
[1749585500820,0.0363,109390.0,109370.0,0.20639032]
[1749585501055,0.0363,109390.0,109370.0,0.2]
[1749585501268,0.0363,109390.0,109370.0,0.2063941]
[1749585501480,0.0363,109390.0,109370.0,0.2]
[1749585501689,0.0363,109390.0,109370.0,0.20639418]
[1749585501895,0.0174,109380.0,109370.0,0.20639418]
[1749585502101,0.0174,109380.0,109370.0,0.20639363]
[1749585502563,0.035,109380.0,109370.0,0.0063937]
[1749585503195,0.036,109380.0,109370.0,0.0063937]
[1749585503398,0.04629679,109380.0,109370.0,0.00639388]
[1749585504359,0.04629679,109380.0,109370.0,0.00639139]
[1749585505020,0.04629679,109380.0,109360.0,0.13424]
[1749585505682,0.04629679,109380.0,109360.0,0.14063139]
[1749585505889,0.02769679,109380.0,109360.0,0.13424]
[1749585506093,0.02669679,109380.0,109360.0,0.14063139]
[1749585506302,0.02669679,109380.0,109360.0,0.13424]
[1749585506504,0.02669679,109380.0,109360.0,0.14063139]
[1749585506720,0.02669679,109380.0,109360.0,0.13424]
[1749585506932,0.02669679,109380.0,109360.0,0.14063351]
[1749585507763,0.02669679,109380.0,109360.0,0.13424]
[1749585508188,0.02669679,109380.0,109360.0,0.14063351]
[1749585508400,0.02669679,109380.0,109360.0,0.14063713]
[1749585508611,0.03274085,109400.0,109370.0,0.2]
[1749585508814,0.03274085,109400.0,109370.0,0.20639684]
[1749585508815,0.3574,109390.0,109370.0,0.20639684]
[1749585509019,0.375,109390.0,109370.0,0.20639695]
[1749585509222,0.375,109390.0,109370.0,0.20639693]
[1749585509435,0.375,109390.0,109370.0,0.2]
[1749585509644,0.375,109390.0,109370.0,0.20639675]
[1749585509855,0.375,109390.0,109370.0,0.20639677]
[1749585510064,0.376,109390.0,109370.0,0.20639687]
[1749585510481,0.376,109390.0,109370.0,0.2]
[1749585510695,0.377,109390.0,109370.0,0.2]
[1749585511114,0.377,109390.0,109370.0,0.20640549]
[1749585511318,0.377,109390.0,109370.0,0.2]
[1749585511496,0.377,109390.0,109370.0,0.20640547]
[1749585511709,0.38624895,109390.0,109370.0,0.20640546]
[1749585512160,0.38624895,109390.0,109370.0,0.20640581]
[1749585513017,0.38624895,109390.0,109370.0,0.2]
[1749585513227,0.38624895,109390.0,109370.0,0.20640581]
[1749585514279,0.38624895,109390.0,109370.0,0.20640486]
[1749585514496,0.36864895,109390.0,109370.0,0.20640485]
[1749585514728,0.36864895,109390.0,109370.0,0.2]
[1749585515002,0.36864895,109390.0,109370.0,0.20640479]
[1749585516032,0.36864895,109390.0,109370.0,0.20640765]
[1749585516254,0.36864895,109390.0,109370.0,0.2]
[1749585516469,0.36864895,109390.0,109370.0,0.20640765]
[1749585516671,0.36864895,109390.0,109370.0,0.2]
[1749585516877,0.36864895,109390.0,109370.0,0.20640765]
[1749585517365,0.36864895,109390.0,109370.0,0.20641277]
[1749585517647,0.36864895,109390.0,109370.0,0.2]
[1749585517803,0.36864895,109390.0,109370.0,0.20641354]
[1749585518037,0.36864895,109390.0,109370.0,0.2]
[1749585518236,0.36864895,109390.0,109370.0,0.20641354]
[1749585518438,0.36864895,109390.0,109370.0,0.2]
[1749585518643,0.36864895,109390.0,109370.0,0.20641354]
[1749585518842,0.01124895,109390.0,109370.0,0.24081354]
[1749585519052,0.37677876,109410.0,109380.0,0.0419]
[1749585519243,0.48393876,109410.0,109380.0,0.06581339]
[1749585519491,0.48393876,109410.0,109380.0,0.0594]
[1749585519697,0.48393876,109410.0,109380.0,0.06581304]
[1749585519838,0.48393876,109410.0,109380.0,0.0594]
[1749585520097,0.001,109390.0,109380.0,0.0594]
[1749585520463,0.001,109390.0,109380.0,0.065813]
[1749585521352,0.001,109390.0,109380.0,0.06581298]
[1749585521580,0.004,109390.0,109380.0,0.06581298]
[1749585521808,0.004,109390.0,109380.0,0.06581303]
[1749585522028,0.006,109390.0,109380.0,0.06581305]
[1749585523113,0.006,109390.0,109380.0,0.0658147]
[1749585523324,0.006,109390.0,109380.0,0.0594]
[1749585523541,0.006,109390.0,109380.0,0.0658147]
[1749585523755,0.006,109390.0,109380.0,0.0594]
[1749585523964,0.006,109390.0,109380.0,0.0658147]
[1749585524382,0.006,109390.0,109380.0,0.06581467]
[1749585524823,0.006,109390.0,109380.0,0.06581465]
[1749585525040,0.006,109390.0,109380.0,0.0594]
[1749585525515,0.006,109390.0,109380.0,0.04831465]
[1749585525730,0.006,109390.0,109380.0,0.04831466]
[1749585525952,0.006,109390.0,109380.0,0.00641466]
[1749585525953,0.0235,109390.0,109380.0,0.00641466]
[1749585526363,0.0235,109390.0,109380.0,0.00641512]
[1749585526680,0.0235,109390.0,109380.0,0.00641511]
[1749585526972,0.0235,109390.0,109380.0,0.00641523]
[1749585527904,0.48689425,109390.0,109380.0,0.00641523]
[1749585528112,0.48689425,109390.0,109380.0,0.00641566]
[1749585528314,0.48689425,109390.0,109380.0,0.00641573]
[1749585528731,0.46939425,109390.0,109380.0,0.00641574]
[1749585529352,0.48689425,109390.0,109380.0,0.00641574]
[1749585529967,0.48689425,109390.0,109360.0,0.027]
[1749585530176,0.48689425,109390.0,109360.0,0.03341542]
[1749585530585,0.48689425,109390.0,109360.0,0.027]
[1749585530801,0.37204085,109370.0,109360.0,0.00641542]
[1749585531021,0.37282614,109370.0,109350.0,0.09079044]
[1749585531233,0.37154085,109370.0,109350.0,0.00641589]
[1749585531442,0.42561137,109370.0,109360.0,0.001]
[1749585531661,0.41646885,109370.0,109360.0,0.001]
[1749585532082,0.41694731,109370.0,109340.0,0.002]
[1749585532298,0.41994731,109370.0,109340.0,0.002]
[1749585532513,0.44692067,109370.0,109340.0,0.0186]
[1749585532717,0.51777407,109370.0,109340.0,0.002]
[1749585532922,0.0179,109360.0,109340.0,0.002]
[1749585533885,0.02693587,109360.0,109340.0,0.002]
[1749585534595,0.00903587,109360.0,109340.0,0.0182]
[1749585534824,0.00903587,109360.0,109340.0,0.0352]
[1749585535054,0.50644071,109370.0,109340.0,0.0352]
[1749585535390,0.001,109360.0,109340.0,0.0352]
[1749585535719,0.001,109360.0,109340.0,0.65536918]
[1749585535924,0.001,109360.0,109350.0,0.97102258]
[1749585536172,0.00047846,109370.0,109360.0,0.0345]
[1749585536361,0.00147846,109370.0,109360.0,0.0345]
[1749585536568,0.00147846,109370.0,109360.0,0.24998856]
[1749585536777,0.00147846,109370.0,109360.0,0.24998684]
[1749585536986,0.00047846,109370.0,109360.0,0.24998698]
[1749585537207,0.00047846,109370.0,109360.0,0.8701561]
[1749585537433,0.00047846,109370.0,109360.0,0.2329334]
[1749585537645,0.00047846,109370.0,109360.0,0.24998676]
[1749585537862,0.00047846,109370.0,109360.0,0.2499864]
[1749585538703,0.00047846,109370.0,109360.0,0.2499905]
[1749585539351,0.00147846,109370.0,109360.0,0.2499905]
[1749585539563,0.00147846,109370.0,109360.0,0.2499903]
[1749585539773,0.00147846,109370.0,109360.0,0.81376439]
[1749585540000,0.00147846,109370.0,109360.0,0.88749816]
[1749585540208,0.00147846,109370.0,109360.0,0.9045542]
[1749585540452,0.00147846,109370.0,109360.0,0.90455384]
[1749585540655,0.00147846,109370.0,109360.0,0.88749816]
[1749585540893,0.00147846,109370.0,109360.0,0.90455401]
[1749585541131,0.00147846,109370.0,109360.0,0.88749816]
[1749585541360,0.00147846,109370.0,109360.0,0.90455368]
[1749585541589,0.00147846,109370.0,109360.0,0.81376324]
[1749585541822,0.00147846,109370.0,109360.0,0.94104972]
[1749585542066,0.00147846,109370.0,109360.0,0.94104405]
[1749585542319,0.00147846,109370.0,109360.0,1.60685853]
[1749585542564,0.002,109390.0,109380.0,1.01616537]
[1749585542807,0.002,109390.0,109380.0,1.72594735]
[1749585543097,0.002,109390.0,109380.0,1.74299231]
[1749585543326,0.002,109390.0,109380.0,1.69292819]
[1749585543560,0.002,109390.0,109380.0,0.6267534]
[1749585543844,0.002,109390.0,109380.0,1.73501337]
[1749585544050,0.002,109390.0,109380.0,6.78501337]
[1749585544264,0.002,109390.0,109380.0,6.73701337]
[1749585544486,0.002,109410.0,109400.0,0.65035611]
[1749585544712,0.01,109420.0,109410.0,0.59717432]
[1749585544934,0.01,109420.0,109410.0,0.21553824]
[1749585545148,0.01,109420.0,109410.0,0.77931256]
[1749585545601,0.00410195,109420.0,109410.0,1.13739063]
[1749585545820,0.00410195,109420.0,109410.0,1.05589055]
[1749585546048,0.00410195,109420.0,109410.0,1.18300025]
[1749585546284,0.002,109430.0,109420.0,0.7]
[1749585546505,0.002,109430.0,109420.0,7.09052594]
[1749585546718,0.002,109430.0,109420.0,2.34923597]
[1749585546983,0.002,109430.0,109420.0,2.46533473]
[1749585547193,0.002,109430.0,109420.0,2.47447341]
[1749585547420,0.002,109430.0,109420.0,2.55411063]
[1749585547638,0.00079176,109430.0,109420.0,2.22960371]
[1749585547876,0.00079176,109430.0,109420.0,2.38774456]
[1749585548084,0.1,109450.0,109440.0,0.4852]
[1749585548299,0.1,109450.0,109440.0,1.14032772]
[1749585548513,0.1,109450.0,109440.0,1.24728772]
[1749585548722,0.1,109450.0,109440.0,0.5765534]
[1749585548932,0.1,109450.0,109440.0,0.6834734]
[1749585549140,0.1,109450.0,109440.0,1.24724772]
[1749585549357,0.1,109450.0,109440.0,0.6834734]
[1749585549566,0.1,109450.0,109440.0,1.24724772]
[1749585549786,0.1,109450.0,109440.0,1.14032772]
[1749585549994,0.1,109450.0,109440.0,0.5765534]
[1749585550209,0.1,109450.0,109440.0,0.6409734]
[1749585550412,0.1,109450.0,109440.0,0.6419734]
[1749585551159,0.1,109450.0,109440.0,0.5340534]
[1749585551380,0.1,109450.0,109440.0,0.6409734]
[1749585551629,0.101,109450.0,109440.0,0.5163534]
[1749585551841,0.101,109450.0,109440.0,0.6232734]
[1749585552053,0.101,109450.0,109440.0,0.5163534]
[1749585552270,0.101,109450.0,109440.0,0.4232734]
[1749585553382,0.101,109450.0,109440.0,0.4405734]
[1749585553799,0.101,109450.0,109440.0,0.4232734]
[1749585554217,0.1029,109450.0,109440.0,0.4232734]
[1749585554465,0.1029,109450.0,109440.0,0.3163534]
[1749585554682,0.1029,109450.0,109440.0,0.4232334]
[1749585554890,0.1029,109450.0,109440.0,0.4411334]
[1749585555109,0.1029,109450.0,109440.0,0.10688]
[1749585555784,0.1203,109450.0,109430.0,0.2]
[1749585555989,0.1377,109450.0,109430.0,0.2]
[1749585556414,0.0165,109440.0,109420.0,0.12115934]
[1749585556623,0.0165,109440.0,109420.0,0.21251274]
[1749585556863,0.0165,109440.0,109420.0,0.10563274]
[1749585557087,0.0165,109440.0,109420.0,0.21251274]
[1749585557310,0.0165,109440.0,109420.0,0.10563274]
[1749585557769,0.0165,109440.0,109420.0,0.21251274]
[1749585558012,0.3564,109440.0,109410.0,0.40014542]
[1749585558241,0.0165,109430.0,109410.0,0.50702542]
[1749585560545,0.0165,109430.0,109410.0,0.40214542]
[1749585560759,0.0165,109430.0,109410.0,0.50702542]
[1749585560992,0.001,109430.0,109410.0,0.50702542]
[1749585561208,0.002,109430.0,109410.0,0.50702542]
[1749585561638,0.0293521,109430.0,109410.0,1.19625314]
[1749585561835,0.002,109430.0,109420.0,0.1511534]
[1749585562049,0.002,109430.0,109420.0,0.71492772]
[1749585562274,0.002,109430.0,109420.0,1.05492772]
[1749585562521,0.1019,109450.0,109440.0,0.225]
[1749585562773,0.1019,109450.0,109440.0,0.4232334]
[1749585564483,0.1049,109450.0,109440.0,0.4232334]
[1749585565110,0.1069,109450.0,109440.0,0.4232334]
[1749585565522,0.1069,109450.0,109440.0,0.98700772]
[1749585566208,0.1069,109450.0,109440.0,0.4232334]
[1749585566421,0.1069,109450.0,109430.0,0.2]
[1749585566629,0.1069,109450.0,109440.0,0.10684]
[1749585566842,0.1049,109450.0,109430.0,0.3981934]
[1749585567049,0.1019,109450.0,109430.0,0.3981934]
[1749585567269,0.1029,109450.0,109430.0,0.3981934]
[1749585567475,0.1039,109450.0,109430.0,0.3981934]
[1749585567681,0.1029,109450.0,109430.0,0.3981934]
[1749585567899,0.1039,109450.0,109430.0,0.2913534]
[1749585568111,0.1039,109450.0,109440.0,0.10684]
[1749585568332,0.1029,109450.0,109440.0,0.10684]
[1749585568533,0.1039,109450.0,109440.0,0.76196772]
[1749585568738,0.1039,109450.0,109440.0,0.77826772]
[1749585568956,0.1039,109450.0,109440.0,1.02026772]
[1749585569846,0.1029,109450.0,109440.0,1.02026772]
[1749585570054,0.1029,109450.0,109440.0,0.4231934]
[1749585570267,0.101297,109450.0,109440.0,0.4231934]
[1749585570479,0.102297,109450.0,109440.0,0.4231934]
[1749585570729,0.100297,109450.0,109440.0,0.10684]
[1749585570970,0.101297,109450.0,109440.0,0.10684]
[1749585571869,0.101297,109450.0,109430.0,0.76377432]
[1749585572101,0.101297,109450.0,109430.0,0.2]
[1749585572102,0.118297,109450.0,109430.0,0.2]
[1749585572353,0.101297,109450.0,109430.0,0.2913534]
[1749585572558,0.134997,109450.0,109430.0,0.2]
[1749585572778,0.134997,109450.0,109430.0,0.30684]
[1749585572991,0.133997,109450.0,109430.0,0.30684]